bitfinex/quotes_SOLUSD_20250604
["timestamp","ask_amount","ask_price","bid_price","bid_amount"]
[1749033668310,6.5401,156.72,156.68,14.33090129]
[1749033670934,20.87100129,156.72,156.68,14.33090129]
[1749033671522,6.5401,156.72,156.68,14.33090129]
[1749033672729,6.5401,156.72,156.65,146.14216157]
[1749033672935,6.5401,156.72,156.69,14.33090129]
[1749033674952,6.5401,156.72,156.68,14.33090129]
[1749033675434,26.0,156.71,156.67,14.33090129]
[1749033678244,26.0,156.71,156.68,14.33090129]
[1749033679936,26.0,156.71,156.67,14.33090129]
[1749033683641,14.33090129,156.71,156.66,146.0]
[1749033683822,14.33090129,156.68,156.66,146.0]
[1749033684025,14.33090129,156.67,156.62,14.33090129]
[1749033684937,14.33090129,156.65,156.61,170.39862171]
[1749033685137,14.33090129,156.65,156.61,146.0]
[1749033685322,14.33090129,156.64,156.61,146.0]
[1749033686340,25.10624886,156.68,156.61,146.0]
[1749033686539,14.33090129,156.66,156.61,160.33090129]
[1749033686846,14.33090129,156.67,156.62,14.33090129]
[1749033687345,14.33090129,156.66,156.61,160.33090129]
[1749033688646,6.4566,156.68,156.62,14.33090129]
[1749033688647,14.33090129,156.67,156.62,14.33090129]
[1749033688946,20.78750129,156.68,156.64,14.33090129]
[1749033689327,6.4566,156.68,156.64,14.33090129]
[1749033689642,1.5669,156.7,156.66,14.33090129]
[1749033689837,6.2745,156.72,156.66,14.33090129]
[1749033690151,14.33090129,156.71,156.66,14.33090129]
[1749033690445,14.33090129,156.7,156.66,14.33090129]
[1749033690620,14.33090129,156.69,156.65,14.33090129]
[1749033690822,14.33090129,156.68,156.64,14.33090129]
[1749033691944,14.33090129,156.67,156.63,14.33090129]
[1749033693051,14.33090129,156.68,156.63,14.33090129]
[1749033694044,14.33090129,156.68,156.64,14.33090129]
[1749033697852,14.33090129,156.67,156.61,26.0]
[1749033698158,14.33090129,156.67,156.62,14.33090129]
[1749033698337,14.33090129,156.66,156.62,14.33090129]
[1749033702851,14.33090129,156.65,156.61,14.33090129]
[1749033705357,14.33090129,156.65,156.58,173.82962314]
[1749033705358,14.33090129,156.65,156.58,172.0]
[1749033705534,14.33090129,156.65,156.61,14.33090129]
[1749033705735,14.33090129,156.66,156.61,14.33090129]
[1749033706343,14.33090129,156.66,156.62,14.33090129]
[1749033711161,14.33090129,156.66,156.61,14.33090129]
[1749033711557,14.33090129,156.65,156.61,14.33090129]
[1749033713168,14.33090129,156.65,156.6,14.33090129]
[1749033713666,14.33090129,156.63,156.59,14.33090129]
[1749033713869,14.33090129,156.63,156.58,26.0]
[1749033714069,14.33090129,156.63,156.59,14.33090129]
[1749033714768,14.33090129,156.64,156.6,14.33090129]
[1749033716067,1.6421,156.65,156.61,14.33090129]
[1749033716267,14.33090129,156.66,156.61,14.33090129]
[1749033716868,14.33090129,156.65,156.61,14.33090129]
[1749033717375,14.33090129,156.65,156.6,14.33090129]
[1749033717576,14.33090129,156.64,156.6,14.33090129]
[1749033717962,14.33090129,156.65,156.6,14.33090129]
[1749033719474,6.2386,156.67,156.61,14.33090129]
[1749033719676,20.80460129,156.71,156.66,14.33090129]
[1749033719876,20.80460129,156.71,156.67,14.33090129]
[1749033720377,20.80460129,156.71,156.66,14.33090129]
[1749033723279,6.4737,156.71,156.67,14.33090129]
[1749033723465,6.4737,156.71,156.68,14.33090129]
[1749033723665,20.80460129,156.71,156.67,14.33090129]
[1749033724174,6.4737,156.71,156.67,14.33090129]
[1749033724361,20.80460129,156.71,156.67,14.33090129]
[1749033725176,20.80460129,156.71,156.66,14.33090129]
[1749033726984,20.80460129,156.71,156.67,14.33090129]
[1749033728378,20.80460129,156.71,156.66,14.33090129]
[1749033731081,46.80460129,156.71,156.66,14.33090129]
[1749033731383,46.80460129,156.71,156.67,14.33090129]
[1749033734877,46.80460129,156.71,156.66,14.33090129]
[1749033735283,14.33090129,156.7,156.66,14.33090129]
[1749033736593,46.80460129,156.71,156.66,14.33090129]
[1749033736985,32.4737,156.71,156.67,14.33090129]
[1749033738970,6.4737,156.71,156.68,14.33090129]
[1749033739178,15.93980129,156.74,156.69,14.33090129]
[1749033739378,41.93980129,156.74,156.7,14.33090129]
[1749033739687,1.6089,156.74,156.7,14.33090129]
[1749033739892,6.4316,156.75,156.72,14.33090129]
[1749033740100,7.8872,156.79,156.74,14.33090129]
[1749033740304,7.8872,156.79,156.7,1.6572]
[1749033740305,6.2879,156.79,156.76,14.33090129]
[1749033741187,6.2879,156.79,156.71,0.42648471]
[1749033741377,6.2879,156.79,156.75,14.33090129]
[1749033742167,14.33090129,156.78,156.73,14.33090129]
[1749033742523,14.33090129,156.76,156.72,14.33090129]
[1749033742679,14.33090129,156.76,156.71,14.33090129]
[1749033743295,14.33090129,156.75,156.71,14.33090129]
[1749033743687,18.64964886,156.78,156.71,14.33090129]
[1749033743890,14.33090129,156.75,156.71,14.33090129]
[1749033745378,14.33090129,156.76,156.71,14.33090129]
[1749033745783,14.33090129,156.76,156.72,14.33090129]
[1749033746182,14.33090129,156.78,156.73,14.33090129]
[1749033746595,6.2879,156.79,156.73,14.33090129]
[1749033746893,14.33090129,156.78,156.73,14.33090129]
[1749033748004,14.33090129,156.78,156.74,14.33090129]
[1749033749397,20.61880129,156.79,156.75,14.33090129]
[1749033749601,6.2879,156.79,156.76,14.33090129]
[1749033749807,14.33090129,156.8,156.76,14.33090129]
[1749033750800,32.0033,156.82,156.77,14.33090129]
[1749033750995,14.33090129,156.81,156.77,14.33090129]
[1749033751583,46.33420129,156.82,156.77,14.33090129]
[1749033752899,20.33420129,156.82,156.77,14.33090129]
[1749033753491,20.33420129,156.82,156.78,14.33090129]
[1749033753684,6.0033,156.82,156.79,14.33090129]
[1749033753903,14.33090129,156.85,156.8,14.33090129]
[1749033754103,14.33090129,156.85,156.81,14.33090129]
[1749033755306,14.33090129,156.84,156.8,14.33090129]
[1749033756000,14.33090129,156.84,156.79,14.33090129]
[1749033756304,14.33090129,156.83,156.79,14.33090129]
[1749033757538,14.33090129,156.83,156.78,14.33090129]
[1749033759506,18.64964886,156.85,156.79,14.33090129]
[1749033759708,18.64964886,156.85,156.8,14.33090129]
[1749033759904,14.33090129,156.84,156.8,14.33090129]
[1749033760793,32.1445,156.86,156.8,14.33090129]
[1749033761110,14.33090129,156.84,156.8,14.33090129]
[1749033762513,14.33090129,156.83,156.79,14.33090129]
[1749033763114,14.33090129,156.81,156.77,14.33090129]
[1749033763716,14.33090129,156.83,156.79,14.33090129]
[1749033764210,32.1445,156.86,156.8,14.33090129]
[1749033764411,14.33090129,156.85,156.81,14.33090129]
[1749033765491,32.1445,156.86,156.8,14.33090129]
[1749033765692,14.33090129,156.83,156.77,0.14216157]
[1749033766008,32.1445,156.86,156.8,14.33090129]
[1749033766216,32.1445,156.86,156.81,14.33090129]
[1749033766392,14.33090129,156.85,156.81,14.33090129]
[1749033766897,14.33090129,156.84,156.8,14.33090129]
[1749033769620,32.1445,156.86,156.8,14.33090129]
[1749033769818,14.33090129,156.84,156.8,14.33090129]
[1749033770819,32.1445,156.86,156.8,14.33090129]
[1749033771013,14.33090129,156.84,156.8,14.33090129]
[1749033771216,32.1445,156.86,156.8,14.33090129]
[1749033771422,3.32028351,156.88,156.82,14.33090129]
[1749033771712,26.0,156.85,156.83,14.33090129]
[1749033772018,26.0,156.85,156.77,28.55424853]
[1749033772019,14.33090129,156.84,156.8,14.33090129]
[1749033772395,14.33090129,156.83,156.79,14.33090129]
[1749033773101,14.33090129,156.83,156.78,14.33090129]
[1749033775824,14.33090129,156.83,156.79,14.33090129]
[1749033776802,14.33090129,156.82,156.78,14.33090129]
[1749033777222,14.33090129,156.83,156.79,14.33090129]
[1749033778431,32.5807,156.85,156.79,14.33090129]
[1749033778729,14.33090129,156.83,156.79,14.33090129]
[1749033779933,14.33090129,156.82,156.78,14.33090129]
[1749033780228,14.33090129,156.8,156.75,146.0]
[1749033780429,14.33090129,156.79,156.75,14.33090129]
[1749033780728,14.33090129,156.77,156.73,14.33090129]
[1749033781333,14.33090129,156.78,156.73,14.33090129]
[1749033781926,40.33090129,156.78,156.74,14.33090129]
[1749033783327,26.0,156.78,156.75,14.33090129]
[1749033783636,26.0,156.8,156.77,14.33090129]
[1749033783936,26.0,156.82,156.78,14.33090129]
[1749033784942,20.47420129,156.83,156.78,14.33090129]
[1749033786130,6.1433,156.83,156.79,14.33090129]
[1749033786337,20.47420129,156.83,156.79,14.33090129]
[1749033788134,6.1433,156.83,156.8,14.33090129]
[1749033788322,26.0,156.84,156.81,14.33090129]
[1749033788912,26.0,156.84,156.8,14.33090129]
[1749033789135,14.33090129,156.83,156.79,14.33090129]
[1749033789334,14.33090129,156.83,156.74,148.4634]
[1749033789633,14.33090129,156.83,156.79,14.33090129]
[1749033791843,14.33090129,156.82,156.78,14.33090129]
[1749033792021,20.33710129,156.82,156.78,14.33090129]
[1749033795634,14.33090129,156.81,156.77,14.33090129]
[1749033796117,20.33710129,156.82,156.78,14.33090129]
[1749033796319,20.33710129,156.82,156.75,0.14216157]
[1749033796521,20.33710129,156.82,156.78,14.33090129]
[1749033797428,14.33090129,156.81,156.77,14.33090129]
[1749033797820,14.33090129,156.78,156.75,146.0]
[1749033798030,14.33090129,156.78,156.73,14.33090129]
[1749033799036,6.0062,156.82,156.77,14.33090129]
[1749033799217,14.33090129,156.81,156.77,14.33090129]
[1749033799833,6.0062,156.82,156.78,14.33090129]
[1749033800032,20.33710129,156.82,156.78,14.33090129]
[1749033803322,6.0062,156.82,156.78,14.33090129]
[1749033803522,20.33710129,156.82,156.78,14.33090129]
[1749033805139,20.33710129,156.82,156.73,148.05268471]
[1749033805346,20.33710129,156.82,156.77,14.33090129]
[1749033806039,20.33710129,156.82,156.78,14.33090129]
[1749033807949,6.0062,156.82,156.78,14.33090129]
[1749033809751,6.0062,156.82,156.79,14.33090129]
[1749033810251,6.0062,156.82,156.78,14.33090129]
[1749033811658,6.0062,156.82,156.79,14.33090129]
[1749033814245,6.0062,156.82,156.78,14.33090129]
[1749033814445,20.33710129,156.82,156.78,14.33090129]
[1749033814636,20.33710129,156.82,156.77,14.33090129]
[1749033815855,14.33090129,156.79,156.72,19.46135235]
[1749033816039,32.0062,156.82,156.73,14.33090129]
[1749033816040,14.33090129,156.77,156.73,14.33090129]
[1749033816235,14.33090129,156.76,156.72,19.46135235]
[1749033816647,20.76850129,156.76,156.72,19.46135235]
[1749033817042,14.33090129,156.75,156.7,14.33090129]
[1749033817261,6.4376,156.76,156.69,14.33090129]
[1749033817262,14.33090129,156.74,156.69,14.33090129]
[1749033818457,14.33090129,156.74,156.68,26.0]
[1749033818458,14.33090129,156.74,156.7,14.33090129]
[1749033818838,14.33090129,156.75,156.7,14.33090129]
[1749033819550,20.76850129,156.76,156.72,14.33090129]
[1749033819864,6.4376,156.76,156.72,14.33090129]
[1749033821168,32.4376,156.76,156.72,14.33090129]
[1749033822162,46.76850129,156.76,156.72,14.33090129]
[1749033823052,20.76850129,156.76,156.72,14.33090129]
[1749033823248,6.4376,156.76,156.73,14.33090129]
[1749033829698,15.88700129,156.77,156.73,14.33090129]
[1749033829699,14.33090129,156.77,156.73,14.33090129]
[1749033830293,14.33090129,156.78,156.74,14.33090129]
[1749033830496,14.33090129,156.79,156.74,14.33090129]
[1749033832806,6.6266,156.8,156.75,14.33090129]
[1749033832974,6.6266,156.8,156.77,14.33090129]
[1749033833284,14.33090129,156.83,156.78,14.33090129]
[1749033833484,6.3193,156.84,156.79,14.33090129]
[1749033833688,20.65020129,156.84,156.79,14.33090129]
[1749033834000,14.33090129,156.83,156.79,14.33090129]
[1749033836320,20.65020129,156.84,156.8,14.33090129]
[1749033840518,14.33090129,156.83,156.79,14.33090129]
[1749033840725,20.65020129,156.84,156.79,14.33090129]
[1749033842322,20.65020129,156.84,156.8,14.33090129]
[1749033843009,32.98055015,156.86,156.82,14.33090129]
[1749033843724,43.65136008,156.87,156.82,14.33090129]
[1749033844424,20.86680129,156.88,156.83,14.33090129]
[1749033845733,20.86680129,156.88,156.84,14.33090129]
[1749033845734,6.5359,156.88,156.84,14.33090129]
[1749033845909,20.86680129,156.88,156.84,14.33090129]
[1749033846109,20.86680129,156.88,156.83,14.33090129]
[1749033846517,14.33090129,156.87,156.83,14.33090129]
[1749033846705,6.5359,156.88,156.83,14.33090129]
[1749033847025,20.86680129,156.88,156.83,14.33090129]
[1749033849423,20.86680129,156.88,156.84,14.33090129]
[1749033850921,20.86680129,156.88,156.83,14.33090129]
[1749033851109,14.33090129,156.87,156.83,14.33090129]
[1749033856924,20.86680129,156.88,156.84,14.33090129]
[1749033857509,6.5359,156.88,156.84,14.33090129]
[1749033857726,6.5359,156.88,156.85,14.33090129]
[1749033858440,21.96941499,156.9,156.8,160.33090129]
[1749033858630,14.33090129,156.91,156.87,14.33090129]
[1749033859006,32.5457,156.92,156.87,14.33090129]
[1749033859209,20.87660129,156.92,156.83,0.42648471]
[1749033859507,20.87660129,156.92,156.88,14.33090129]
[1749033860209,6.5457,156.92,156.88,14.33090129]
[1749033860416,20.87660129,156.92,156.88,14.33090129]
[1749033860940,20.87660129,156.92,156.87,14.33090129]
[1749033861231,14.33090129,156.91,156.87,14.33090129]
[1749033861439,14.33090129,156.9,156.86,14.33090129]
[1749033862538,14.33090129,156.89,156.83,0.14216157]
[1749033862732,14.33090129,156.88,156.84,14.33090129]
[1749033863110,14.33090129,156.89,156.85,14.33090129]
[1749033864032,14.33090129,156.9,156.86,14.33090129]
[1749033865909,14.33090129,156.89,156.85,14.33090129]
[1749033866113,14.33090129,156.89,156.84,14.33090129]
[1749033866626,14.33090129,156.88,156.84,14.33090129]
[1749033867312,14.33090129,156.89,156.85,14.33090129]
[1749033868239,14.33090129,156.89,156.84,14.33090129]
[1749033870742,40.33090129,156.9,156.86,14.33090129]
[1749033870919,14.33090129,156.9,156.86,14.33090129]
[1749033872833,32.5457,156.92,156.88,14.33090129]
[1749033872834,20.87660129,156.92,156.88,14.33090129]
[1749033874827,6.5457,156.92,156.88,14.33090129]
[1749033875130,40.33090129,156.94,156.9,14.33090129]
[1749033875321,14.33090129,156.91,156.87,14.33090129]
[1749033875747,14.33090129,156.9,156.86,14.33090129]
[1749033876056,14.33090129,156.89,156.85,14.33090129]
[1749033876352,14.33090129,156.88,156.84,14.33090129]
[1749033878000,14.33090129,156.86,156.78,155.94222924]
[1749033878161,14.33090129,156.85,156.81,14.33090129]
[1749033878360,14.33090129,156.86,156.82,14.33090129]
[1749033878558,14.33090129,156.88,156.84,14.33090129]
[1749033878996,6.4967,156.9,156.84,14.33090129]
[1749033879302,14.33090129,156.88,156.84,14.33090129]
[1749033881178,14.33090129,156.87,156.83,14.33090129]
[1749033881790,14.33090129,156.86,156.8,0.14216157]
[1749033882000,14.33090129,156.86,156.82,14.33090129]
[1749033883108,14.33090129,156.86,156.81,26.0]
[1749033883408,14.33090129,156.86,156.82,14.33090129]
[1749033886290,14.33090129,156.86,156.81,40.33090129]
[1749033887103,14.33090129,156.86,156.82,14.33090129]
[1749033888189,14.33090129,156.87,156.83,14.33090129]
[1749033888898,6.4967,156.9,156.84,14.33090129]
[1749033889110,14.33090129,156.89,156.84,14.33090129]
[1749033889999,14.33090129,156.87,156.83,14.33090129]
[1749033890397,14.33090129,156.87,156.81,172.0]
[1749033890398,14.33090129,156.87,156.82,14.33090129]
[1749033891308,14.33090129,156.86,156.82,14.33090129]
[1749033894297,6.4967,156.9,156.83,14.33090129]
[1749033894499,14.33090129,156.87,156.83,14.33090129]
[1749033900530,14.33090129,156.88,156.83,14.33090129]
[1749033901322,14.33090129,156.89,156.85,14.33090129]
[1749033901828,20.82760129,156.9,156.85,14.33090129]
[1749033902018,20.82760129,156.9,156.86,14.33090129]
[1749033902831,20.82760129,156.9,156.85,14.33090129]
[1749033903632,6.4967,156.9,156.85,14.33090129]
[1749033903825,20.82760129,156.9,156.86,14.33090129]
[1749033907240,6.4967,156.9,156.86,14.33090129]
[1749033908041,20.82760129,156.9,156.86,14.33090129]
[1749033908341,20.82760129,156.9,156.85,14.33090129]
[1749033909321,14.33090129,156.88,156.84,14.33090129]
[1749033909523,6.4967,156.9,156.82,0.42648471]
[1749033909524,14.33090129,156.86,156.82,14.33090129]
[1749033910420,6.4967,156.9,156.81,160.33090129]
[1749033910421,14.33090129,156.85,156.81,160.33090129]
[1749033911020,14.33090129,156.86,156.81,160.33090129]
[1749033911228,14.33090129,156.84,156.8,14.33090129]
[1749033911529,26.0,156.87,156.8,14.33090129]
[1749033911530,14.33090129,156.85,156.8,14.33090129]
[1749033911936,14.33090129,156.84,156.8,14.33090129]
[1749033915421,14.33090129,156.83,156.78,0.14216157]
[1749033915628,14.33090129,156.83,156.79,14.33090129]
[1749033915833,14.33090129,156.82,156.78,14.33090129]
[1749033916031,14.33090129,156.82,156.77,7.69271607]
[1749033916237,14.33090129,156.81,156.77,22.02361736]
[1749033917151,14.33090129,156.82,156.77,22.02361736]
[1749033917449,14.33090129,156.81,156.77,22.02361736]
[1749033918556,14.33090129,156.81,156.77,14.33090129]
[1749033920743,14.33090129,156.82,156.77,14.33090129]
[1749033922031,14.33090129,156.81,156.77,14.33090129]
[1749033923154,6.5534,156.85,156.77,14.33090129]
[1749033923340,14.33090129,156.82,156.77,14.33090129]
[1749033924061,14.33090129,156.81,156.77,14.33090129]
[1749033924239,9.951222,156.78,156.77,14.33090129]
[1749033925955,24.28212329,156.78,156.73,9.17432174]
[1749033926160,9.90785766,156.75,156.72,32.63096227]
[1749033926540,9.90785766,156.75,156.73,14.33090129]
[1749033926855,9.90785766,156.75,156.74,14.33090129]
[1749033927060,9.90785766,156.76,156.74,14.33090129]
[1749033927262,19.90244401,156.77,156.74,14.33090129]
[1749033927263,9.90785766,156.75,156.74,14.33090129]
[1749033927466,9.90785766,156.76,156.74,14.33090129]
[1749033928130,9.90785766,156.76,156.72,18.30006098]
[1749033928131,9.90785766,156.76,156.75,14.33090129]
[1749033930365,19.90244401,156.77,156.75,14.33090129]
[1749033933171,19.90244401,156.77,156.74,14.33090129]
[1749033933373,9.92524594,156.75,156.74,14.33090129]
[1749033934651,19.90244401,156.76,156.74,14.33090129]
[1749033936256,9.92433141,156.75,156.74,14.33090129]
[1749033936567,14.33090129,156.78,156.74,14.33090129]
[1749033937150,20.59080129,156.79,156.75,14.33090129]
[1749033939374,20.59080129,156.79,156.74,14.33090129]
[1749033940550,20.59080129,156.79,156.76,14.33090129]
[1749033940551,6.2599,156.79,156.76,14.33090129]
[1749033941371,20.59080129,156.79,156.75,14.33090129]
[1749033945256,6.2599,156.79,156.75,14.33090129]
[1749033946083,6.2599,156.79,156.76,14.33090129]
[1749033946374,14.33090129,156.8,156.76,14.33090129]
[1749033948159,28.47241951,156.83,156.76,14.33090129]
[1749033948356,14.33090129,156.8,156.76,14.33090129]
[1749033950584,14.33090129,156.79,156.75,14.33090129]
[1749033952082,14.33090129,156.8,156.75,14.33090129]
[1749033954099,14.33090129,156.8,156.76,14.33090129]
[1749033955388,9.15560489,156.8,156.75,9.15560489]
[1749033956792,9.15560489,156.8,156.74,146.0]
[1749033956989,9.15560489,156.79,156.74,155.15560489]
[1749033958581,9.15560489,156.8,156.75,9.15560489]
[1749033958782,28.47241951,156.83,156.74,146.0]
[1749033958966,9.15560489,156.79,156.75,9.15560489]
[1749033959171,9.15560489,156.8,156.75,9.15560489]
[1749033960994,28.47241951,156.83,156.75,9.15560489]
[1749033961211,9.15560489,156.8,156.75,9.15560489]
[1749033961567,9.15560489,156.79,156.75,9.15560489]
[1749033962079,9.15560489,156.79,156.74,9.15560489]
[1749033962391,9.15560489,156.78,156.74,9.15560489]
[1749033962768,26.0,156.81,156.73,146.0]
[1749033962972,26.0,156.81,156.68,27.97091485]
[1749033962973,9.15560489,156.75,156.71,9.15560489]
[1749033965304,9.15560489,156.76,156.69,0.42648471]
[1749033965476,9.15560489,156.76,156.72,9.15560489]
[1749033969099,9.15560489,156.75,156.71,9.15560489]
[1749033970095,9.15560489,156.75,156.69,0.14216157]
[1749033970096,9.15560489,156.75,156.69,0.42648471]
[1749033970395,6.3356,156.77,156.72,9.15560489]
[1749033970694,9.15560489,156.76,156.72,9.15560489]
[1749033973297,9.15560489,156.76,156.69,0.42648471]
[1749033973495,9.15560489,156.75,156.71,9.15560489]
[1749033973680,9.15560489,156.74,156.69,9.29776646]
[1749033973886,9.15560489,156.73,156.69,155.29776646]
[1749033974198,9.15560489,156.73,156.69,146.0]
[1749033975214,9.15560489,156.72,156.69,146.0]
[1749033975493,9.15560489,156.72,156.68,9.15560489]
[1749033976295,9.15560489,156.72,156.67,155.15560489]
[1749033976502,9.15560489,156.71,156.67,9.15560489]
[1749033976678,9.15560489,156.72,156.67,9.15560489]
[1749033976879,9.15560489,156.72,156.68,9.15560489]
[1749033977290,14.31956633,156.72,156.67,14.31956633]
[1749033978588,14.31956633,156.71,156.67,14.31956633]
[1749033979401,14.31956633,156.69,156.65,24.3733447]
[1749033979608,14.31956633,156.69,156.65,38.69291103]
[1749033979899,14.31956633,156.68,156.65,24.3733447]
[1749033980104,14.31956633,156.68,156.64,14.31956633]
[1749033980304,14.31956633,156.68,156.63,14.31956633]
[1749033980796,14.31956633,156.68,156.64,14.31956633]
[1749033981000,14.31956633,156.68,156.63,14.31956633]
[1749033983803,18.64964886,156.71,156.63,14.31956633]
[1749033984090,14.31956633,156.68,156.63,14.31956633]
[1749033984400,18.64964886,156.71,156.64,14.31956633]
[1749033984703,14.31956633,156.68,156.64,14.31956633]
[1749033986801,18.64964886,156.71,156.64,14.31956633]
[1749033987107,14.31956633,156.68,156.64,14.31956633]
[1749033990102,18.64964886,156.71,156.62,0.14216157]
[1749033990103,14.31956633,156.67,156.62,0.14216157]
[1749033990302,14.31956633,156.67,156.63,14.31956633]
[1749033996209,6.2146,156.72,156.66,14.31956633]
[1749033996392,6.2146,156.72,156.67,14.31956633]
[1749033996722,14.31956633,156.73,156.69,14.31956633]
[1749033998230,6.0696,156.76,156.69,14.31956633]
[1749033998525,14.31956633,156.74,156.7,14.31956633]
[1749033999025,6.0696,156.76,156.72,14.31956633]
[1749033999197,6.0696,156.76,156.73,14.31956633]
[1749033999903,14.31956633,156.78,156.73,14.31956633]
[1749034000095,14.31956633,156.78,156.74,14.31956633]
[1749034001322,14.31956633,156.78,156.7,0.42648471]
[1749034001499,14.31956633,156.77,156.73,14.31956633]
[1749034002312,14.31956633,156.77,156.72,14.31956633]
[1749034003019,14.31956633,156.77,156.73,14.31956633]
[1749034003201,14.31956633,156.78,156.73,14.31956633]
[1749034003403,14.31956633,156.77,156.73,14.31956633]
[1749034007430,14.31956633,156.78,156.73,14.31956633]
[1749034008039,14.31956633,156.78,156.7,26.42648471]
[1749034008225,14.31956633,156.77,156.73,14.31956633]
[1749034010832,14.31956633,156.76,156.72,14.31956633]
[1749034011742,14.31956633,156.76,156.7,172.14216157]
[1749034011942,14.31956633,156.76,156.71,14.31956633]
[1749034013824,14.31956633,156.76,156.72,14.31956633]
[1749034014727,14.31956633,156.75,156.71,14.31956633]
[1749034016942,14.31956633,156.76,156.72,14.31956633]
[1749034017731,14.31956633,156.77,156.72,14.31956633]
[1749034018161,14.31956633,156.77,156.71,26.0]
[1749034018339,14.31956633,156.77,156.72,14.31956633]
[1749034019332,14.31956633,156.76,156.72,14.31956633]
[1749034019558,14.31956633,156.77,156.72,14.31956633]
[1749034020241,14.31956633,156.76,156.71,14.31956633]
[1749034020443,20.43206633,156.75,156.7,14.31956633]
[1749034020852,14.31956633,156.72,156.67,146.0]
[1749034021154,6.42,156.69,156.63,0.14216157]
[1749034021469,9.16880511,156.68,156.63,9.16880511]
[1749034022140,15.58880511,156.69,156.64,9.16880511]
[1749034022851,15.58880511,156.69,156.65,9.16880511]
[1749034023154,6.3188,156.73,156.68,14.31850647]
[1749034023459,6.3188,156.73,156.67,26.14216157]
[1749034023756,14.31850647,156.71,156.66,26.0]
[1749034023954,14.31850647,156.71,156.67,14.31850647]
[1749034026269,6.3188,156.73,156.67,14.31850647]
[1749034026455,14.31850647,156.72,156.68,14.31850647]
[1749034026644,20.63730647,156.73,156.68,14.31850647]
[1749034026956,20.63730647,156.73,156.66,26.0]
[1749034026957,6.3188,156.73,156.69,14.31850647]
[1749034027169,14.31850647,156.76,156.71,14.31850647]
[1749034027342,14.31850647,156.75,156.71,14.31850647]
[1749034027538,14.31850647,156.75,156.7,14.31850647]
[1749034028037,14.31850647,156.75,156.71,14.31850647]
[1749034028262,14.31850647,156.76,156.71,14.31850647]
[1749034028765,14.31850647,156.75,156.67,0.42648471]
[1749034029064,14.31850647,156.74,156.7,14.31850647]
[1749034029248,14.31850647,156.74,156.67,0.42648471]
[1749034029640,14.31850647,156.74,156.7,14.31850647]
[1749034029871,14.31850647,156.72,156.66,1.5027]
[1749034030035,14.31850647,156.72,156.68,14.31850647]
[1749034030236,14.31850647,156.73,156.68,14.31850647]
[1749034030441,14.31850647,156.73,156.69,14.31850647]
[1749034030861,14.31850647,156.74,156.69,14.31850647]
[1749034031063,32.6442,156.77,156.7,14.31850647]
[1749034031370,14.31850647,156.75,156.7,14.31850647]
[1749034032766,14.31850647,156.74,156.7,14.31850647]
[1749034032963,32.6442,156.77,156.7,14.31850647]
[1749034033263,14.31850647,156.75,156.7,14.31850647]
[1749034035669,14.31850647,156.74,156.7,14.31850647]
[1749034036442,14.31850647,156.73,156.67,146.28432314]
[1749034036741,14.31850647,156.73,156.68,14.31850647]
[1749034037654,14.31850647,156.72,156.68,14.31850647]
[1749034037859,14.31850647,156.72,156.67,160.46066804]
[1749034038169,14.31850647,156.72,156.68,14.31850647]
[1749034042675,3.32289469,156.76,156.68,14.31850647]
[1749034042852,14.31850647,156.72,156.68,14.31850647]
[1749034048574,14.31850647,156.73,156.68,14.31850647]
[1749034049955,14.31850647,156.72,156.68,14.31850647]
[1749034050156,14.31850647,156.71,156.67,146.0]
[1749034050370,14.31850647,156.71,156.67,14.31850647]
[1749034052881,14.31850647,156.72,156.67,14.31850647]
[1749034056270,14.31850647,156.71,156.67,14.31850647]
[1749034057885,14.31850647,156.72,156.67,14.31850647]
[1749034063291,14.31850647,156.73,156.67,14.31850647]
[1749034064192,3.32289456,156.74,156.67,14.31850647]
[1749034064387,14.31850647,156.72,156.67,14.31850647]
[1749034065871,14.31850647,156.73,156.67,14.31850647]
[1749034066870,14.31850647,156.72,156.67,14.31850647]
[1749034067067,14.31850647,156.73,156.67,14.31850647]
[1749034067272,9.16387052,156.73,156.67,9.16387052]
[1749034071396,3.32289456,156.74,156.69,9.16387052]
[1749034071593,3.32289456,156.74,156.71,9.16387052]
[1749034071799,3.32289456,156.74,156.7,9.16387052]
[1749034075197,9.16387052,156.72,156.68,9.16387052]
[1749034075782,9.16387052,156.72,156.67,155.16387052]
[1749034075987,9.16387052,156.72,156.64,0.14216157]
[1749034075988,9.16387052,156.71,156.66,9.16387052]
[1749034076205,9.16387052,156.7,156.65,9.16387052]
[1749034076401,9.16387052,156.69,156.64,35.16387052]
[1749034076788,9.16387052,156.68,156.64,26.0]
[1749034076986,9.16387052,156.68,156.64,35.16387052]
[1749034077182,14.32567339,156.68,156.64,40.32567339]
[1749034078012,14.32567339,156.69,156.64,40.32567339]
[1749034078586,14.32567339,156.68,156.63,21.30073763]
[1749034080011,25.03774886,156.72,156.65,14.32567339]
[1749034080186,14.32567339,156.7,156.66,14.32567339]
[1749034080386,14.32567339,156.7,156.65,14.32567339]
[1749034085683,9.71161739,156.72,156.68,14.32567339]